Cogmind - Beta 10.2 @@@ ROGUE MODE // 2021.11.19 @ 15:23:24 // Winter2019/RPGLIKE Player: Storm Mk9 Result: Destroyed by S-10 Pest with Light Assault Rifle Performance ------------- Evolutions (0) 0 Regions Visited (2) 400 Robots Destroyed (6) 30 Value Destroyed (117) 117 Prototype IDs (0) 0 Alien Tech Used (0) 0 Bonus (0) 0 TOTAL SCORE: 547 Bonus ------- None Cogmind --------- Core Integrity 0/600 Matter 239/300 Energy 103/125 System Corruption 0% Temperature Cool (0) Movement Flying (34) Location -10/Mines Parts ------- > --- POWER (2) -------- Light Ion Engine > --- PROPULSION (3) --- VTOL Module VTOL Module VTOL Module > --- UTILITY (2) ------ Structural Scanner Signal Interpreter > --- WEAPON (1) ------- Mining Laser > --- INVENTORY (0) ---- (None) Peak State ------------ > --- POWER ------------ Light Ion Engine Light Ion Engine > --- PROPULSION ------- VTOL Module VTOL Module VTOL Module > --- UTILITY ---------- Structural Scanner Signal Interpreter > --- WEAPON ----------- Heavy Assault Rifle > --- INVENTORY -------- (None) [Rating: 12] Favorites ----------- Power Light Ion Engine Engine Light Ion Engine Propulsion VTOL Module Flight Unit VTOL Module Utility Structural Scanner Device Structural Scanner Processor Signal Interpreter Weapon Light Assault Rifle Energy Gun Medium Laser Ballistic Gun Light Assault Rifle Special Weapon Mining Laser Build | -11 -10 -10 ------- Run | Scr Mat Min Slots Evolved 4 | 4 . . Power 1 | 1 . . Propulsion 2 | 2 . . Utility 1 | 1 . . Weapon . | . . . Parts Attached 12 | 3 9 . Power 2 | 1 1 . Engine 2 | 1 1 . Core . | . . . Reactor . | . . . Propulsion 4 | . 4 . Treads . | . . . Leg . | . . . Wheel . | . . . Hover . | . . . Flight 4 | . 4 . Utility 2 | . 2 . Device 1 | . 1 . Storage . | . . . Processor 1 | . 1 . Hackware . | . . . Protection . | . . . Artifact . | . . . Weapon 4 | 2 2 . Energy Gun 1 | 1 . . Energy Cannon . | . . . Ballistic Gun 2 | 1 1 . Ballistic Cannon . | . . . Launcher . | . . . Special Weapon 1 | . 1 . Impact Weapon . | . . . Slashing Weapon . | . . . Piercing Weapon . | . . . Special Melee Weapon . | . . . Unidentified Prototypes . | . . . Parts Lost 1 | . . 1 Power 1 | . . 1 Propulsion . | . . . Utility . | . . . Weapon . | . . . Highest Loss Streak 1 | . . 1 Average Slot Usage (%) 68 | . 51 98 Engine 20 | . 18 23 Flight 18 | . 8 37 Device 10 | . 9 12 Processor 5 | . 1 12 Ballistic Gun 7 | . 12 . Special Weapon 4 | . . 12 Naked Turns . | . . . Heaviest Build 10 | 5 10 8 Greatest Support 20 | 8 20 20 Greatest Overweight (x) . | . . . Average Overweight (x) . | . . . Largest Inventory Capacity . | . . . Average Capacity . | . . . Most Carried . | . . . Average Carried . | . . . Final Capacity . | . . . Final Carried . | . . . Class Distribution -------------------- 100% | Mutant Dominant Class ---------------- Mutant | -10/Materials Mutant | -10/Mines Resources | -11 -10 -10 ----------- Run | Scr Mat Min Matter Collected 290 | 230 60 . Remotely . | . . . Salvage Created 120 | . 120 . Parts 4 | . 4 . Haulers Intercepted . | . . . Recyclers Shooed . | . . . Parts Field Recycled . | . . . Retrieved Matter . | . . . Parts Self-Destructed . | . . . Prevented . | . . . Kills | -11 -10 -10 ------- Run | Scr Mat Min Combat Hostiles Destroyed 5 | . 3 2 Guns 3 | . 3 . Cannons 2 | . . 2 Classes Destroyed 3 | . 2 1 Recycler 1 | . 1 . Swarmer 3 | . 3 . Grunt 2 | . . 2 Best Kill Streak 3 | . 3 1 Combat Bots Only 2 | . 2 1 Max Kills in Single Turn 1 | . 1 1 Gunslinging . | . . . Exploded . | . . . Melee . | . . . Uniques/NPCs Destroyed . | . . . Combat | -11 -10 -10 -------- Run | Scr Mat Min Damage Taken 761 | . 320 441 Core 638 | . 270 368 Absorbed by Shields . | . . . Redirected to Core 385 | . 158 227 Core Remaining (%) 100 | 100 . . Volleys Fired 47 | . 32 15 Largest 1 | . 1 1 Hottest 100 | . 23 100 Shots Fired 47 | . 32 15 Gun 32 | . 32 . Cannon . | . . . Launcher . | . . . Special 15 | . . 15 Kinetic 32 | . 32 . Thermal 15 | . . 15 Explosive . | . . . Electromagnetic . | . . . Robot Hit Streak 5 | . 5 2 Robot Miss Streak 5 | . 5 3 Penetration Max . | . . . Secondary Targets . | . . . Shots Hit Robots 23 | . 16 7 Core Hits 11 | . 8 3 Critical Hits . | . . . Critical Kills . | . . . Critical Parts Destroyed . | . . . Melee Attacks . | . . . Impact . | . . . Slashing . | . . . Piercing . | . . . Sneak Attacks . | . . . Combat Hostiles . | . . . Follow-up Attacks . | . . . Damage Inflicted 340 | . 172 168 Guns 172 | . 172 . Cannons . | . . . Explosions . | . . . Melee . | . . . Ramming . | . . . Kinetic 172 | . 172 . Thermal 168 | . . 168 Explosive . | . . . Electromagnetic . | . . . Impact . | . . . Slashing . | . . . Piercing . | . . . Highest Corruption . | . . . Average Corruption . | . . . Corruption Purged . | . . . Overload Shots . | . . . Overflow Damage . | . . . Projectiles . | . . . Explosions . | . . . Melee . | . . . Knockbacks . | . . . Impact . | . . . Kinetic . | . . . Secondary . | . . . Self-Inflicted Damage . | . . . Shots . | . . . Rammed . | . . . Targets Rammed . | . . . Kicked . | . . . Crushed . | . . . Highest Temperature . | . . . Average Temperature . | . . . Received Heat Transfer 201 | . 6 195 Siege Activations . | . . . Robots Corrupted . | . . . Combat Hostiles . | . . . Parts Fried . | . . . Impact Corruptions . | . . . Robots Melted . | . . . Combat Hostiles . | . . . Parts Melted . | . . . Heat Transferred 350 | . . 350 Parts Sabotaged . | . . . Parts Stolen . | . . . Parts Stripped . | . . . Power Chain Reactions . | . . . Missiles Intercepted . | . . . Alert | -11 -10 -10 ------- Run | Scr Mat Min Peak Influence 126 | . 120 126 Initial 46 | . . 46 Average 64 | . 57 91 Maximum Alert Level . | . . . Low Security (%) 100 | 100 100 100 Level 1 . | . . . Level 2 . | . . . Level 3 . | . . . Level 4 . | . . . Level 5 . | . . . High Security . | . . . Max Security . | . . . Squads Dispatched 1 | . 1 . Investigation . | . . . Extermination . | . . . Reinforcement 1 | . 1 . Assault . | . . . Garrison . | . . . Intercept . | . . . Construction Impeded . | . . . Haulers Reinforced . | . . . Stealth | -11 -10 -10 --------- Run | Scr Mat Min Distress Signals . | . . . Communications Jammed . | . . . Distress Signals . | . . . Times Spotted 14 | . 9 5 Peak Tracking Total 3 | . 3 3 Tactical Retreats 3 | . 2 1 Traps | -11 -10 -10 ------- Run | Scr Mat Min Traps Triggered . | . . . Indirectly . | . . . Trap Hack Attempts . | . . . Triggered . | . . . Disarmed . | . . . Reprogrammed . | . . . Reused . | . . . Traps Extracted . | . . . Installed . | . . . Triggered . | . . . Machines | -11 -10 -10 ---------- Run | Scr Mat Min Machines Disabled . | . . . Max in Single Turn . | . . . Machines Sabotaged . | . . . Garrisons Compromised . | . . . Overloaded Fab Kills . | . . . Fab Network Shutdowns . | . . . Hacking | -11 -10 -10 --------- Run | Scr Mat Min Machines Accessed . | . . . Terminals . | . . . Fabricators . | . . . Repair Stations . | . . . Recycling Units . | . . . Scanalyzers . | . . . Garrison Access . | . . . Total Hacks . | . . . Successful . | . . . Failed . | . . . Catastrophic . | . . . Database Lockouts . | . . . Manual . | . . . Terminals . | . . . Fabricators . | . . . Repair Stations . | . . . Recycling Units . | . . . Scanalyzers . | . . . Garrison Access . | . . . Terminal Hacks . | . . . Fabricator Hacks . | . . . Repair Station Hacks . | . . . Recycling Unit Hacks . | . . . Scanalyzer . | . . . Garrison Access Hacks . | . . . Unauthorized Hacks . | . . . Terminals . | . . . Fabricators . | . . . Repair Stations . | . . . Recycling Units . | . . . Scanalyzers . | . . . Garrison Access . | . . . Data Cores Recovered . | . . . Used . | . . . Hacking Detections . | . . . Full Trace Events . | . . . Feedback Events . | . . . Feedback Blocked . | . . . Robot Schematics Acquired . | . . . Robots Built . | . . . Matter . | . . . Time . | . . . Total Robot Build Rating . | . . . Part Schematics Acquired . | . . . Parts Built . | . . . Matter . | . . . Time . | . . . Total Part Build Rating . | . . . Parts Repaired . | . . . Time . | . . . Parts Recycled . | . . . Recycled Matter . | . . . Retrieved Matter . | . . . Retrieved Components . | . . . Parts Scanalyzed . | . . . Part Schematics Acquired . | . . . Parts Damaged . | . . . Bothacking | -11 -10 -10 ------------ Run | Scr Mat Min Used RIF Installer . | . . . Robots Hacked . | . . . Non-combat . | . . . Combat . | . . . Robot Hacks Applied . | . . . Relay Couplers Released . | . . . Robots Rewired . | . . . Allies Hacked . | . . . Hacks Repelled . | . . . Allies | -11 -10 -10 -------- Run | Scr Mat Min Total Allies . | . . . Largest Group . | . . . Highest-Rated Group . | . . . Highest-Rated Ally . | . . . Total Orders . | . . . Ally Attacks . | . . . Total Damage . | . . . Kills . | . . . Allies Corrupted . | . . . Allies Melted . | . . . Intel | -11 -10 -10 ------- Run | Scr Mat Min Robot Analysis Total . | . . . Derelict Logs Recovered 2 | . . 2 Drone Launches . | . . . Drone Recoveries . | . . . Exploration | -11 -10 -10 ------------- Run | Scr Mat Min Turns Passed 319 | 23 191 105 Spaces Moved 380 | 37 242 101 Core 127 | 37 90 . Treads . | . . . Legs . | . . . Wheels . | . . . Hover . | . . . Flight 253 | . 152 101 Fastest Speed 34 | 50 34 34 Average Speed 41 | 50 42 34 Slowest Speed 50 | 50 50 34 Overloaded Moves . | . . . Propulsion Burnouts . | . . . Robots Hopped 3 | . 3 . Cave-ins Triggered . | . . . Exploration Rate (%) 24 | 3 43 28 Regions Visited 2 Branch Regions 1 Pre-discovered Areas . | . . . Known Exits Taken 1 | . 1 . Unknown Exits Taken 1 | 1 . . Scrap Searched 1 | . . 1 Spaces Dug . | . . . Terrain Destroyed 2 | . . 2 Melee . | . . . Projectile 2 | . . 2 AOE . | . . . Terrain Rammed . | . . . Walls Destroyed . | . . . Machines Disabled . | . . . Actions | -11 -10 -10 --------- Run | Scr Mat Min Total 463 | 40 296 127 Wait 23 | . 12 11 Move 372 | 36 235 101 Hop 3 | . 3 . Pick Up . | . . . Fast Attach 12 | 3 9 . Attach . | . . . Detach . | . . . Swap . | . . . Drop 4 | 1 3 . Fire 47 | . 32 15 Melee . | . . . Ram . | . . . Kick . | . . . Crush . | . . . Escape Stasis . | . . . Rewire . | . . . Trap . | . . . Miscellaneous 2 | . 2 . Route ------- -11/Scrapyard -10/Materials (discovered 2 exits: [*Mat] / *Min) -10/Mines History --------- Turn | Location | Event 1 | -11/Scrapyard | Upgraded with Power slot (x1) 1 | -11/Scrapyard | Upgraded with Propulsion slot (x2) 1 | -11/Scrapyard | Upgraded with Utility slot (x1) 14 | -11/Scrapyard | Discovered new exit (range 15) 24 | -11/Scrapyard | Entered Materials 171 | -10/Materials | Discovered new exit (range 3) 210 | -10/Materials | Discovered new exit (range 5) 211 | -10/Materials | Identified exit to Mines 215 | -10/Materials | Entered Mines 217 | -10/Mines | Learned 4 Materials zone layouts 235 | -10/Mines | Core integrity fell below 50% 265 | -10/Mines | Core integrity fell below 20% 299 | -10/Mines | Learned location of 1 exit from Materials 310 | -10/Mines | Build established: Mutant 320 | -10/Mines | Destroyed by S-10 Pest with Light Assault Rifle Last Messages --------------- 00211_ EXIT=IDENTIFIED: MINES 00212_ Dropped Hvy. Assault Rifle. 00213_ ALERT: Hostiles spotted, dispatching reinforcements to Terminal M008. 00213_ Acquired Mining Laser. LOCATION=MINES GOAL=ESCAPE 00217_ Acquired derelict log, extracted data. Data stored: Materials zone layouts (x4). 00235_ G-34 Mercenary destroyed. 00276_ G-47 Trooper destroyed. 00292_ K-01 Serf collects debris. 00295_ Searching scrap... 00295_ Found Hammer. 00295_ Found Structural Scanner. 00295_ Found 24 Matter. 00299_ Acquired derelict log, extracted data. Data stored: Materials exits (x1). 00316_ Lgt. Ion Engine destroyed. 00318_ U-05 Engineer builds a Wall. Map ----- +----------------------------------------------------+ | ????????????# ## #???????? | | ????????????## #???????? | | ?????????????## ### #???????? | | ??????????????####?# #???????? | | ???????????????????# #???????? | | ???????????????????# #???????? | | ???????????????????# #???????? | | ???????????????????# #???????? | | ???????############# #???????? | | ??????# / #???????? | | ??????# %! #???????? | | ????###??######### ####???????? | | ???## ??????????# #??????????? | | ???# ?????????# #??????????? | | ???# ?????????# #??????????? | | ???# #????????# #??????????? | | ???# #???????# #??????????? | | ????# ##?????# #### """?? | | ?????# ##????# """?? | | ???????# ####?# #### | | ????????# ### #??????????? | | ????????## #??????????? | | ??###????# ### #??????????? | | ?## ##??# #?# ?????????? | | ?# #### #?#####????????? | | ?# @## #??????????????? | | ?# su ## ##??????????????? | | ?## s #####???????????????? | | ??####; ##???????????????????? | | ?????#####????????????????????? | | ??????????????????????????????? | | ??????????????????????????????? | | ??????????????????????????????? | | ??????????????????????????????? | | ??????????????????????????????? | | ??????????????????????????????? | | ??????????????????????????????? | | ??????????????????????????????? | | ??????????????????????????????? | | ??????????????????????????????? | | ??????????????????????????????? | | ??????????????????????????????? | | ??????????????????????????????? | | ??????????????????????????????? | | ??????????????????????????????? | | | | | | | | | | | +----------------------------------------------------+ Best States ------------- Heat Dissipation 61 Energy Generation 15 Energy Capacity 150 Matter Stores 300 Matter Capacity 300 Sight Range 16 Terrain Scan Density 10 Evasion (%) 63 Item Schematics ----------------- None Robot Schematics ------------------ None Fabricated ------------ Nothing Alien Tech Used ----------------- None Achievements -------------- None Challenges ------------ None RPGLIKE | -11 -10 -10 --------- Run | Scr Mat Min Levels Raised . | . . . XP Earned 4400 | 3000 575 825 XP Spent 3000 | 3000 . . Upgrades 11 | 11 . . Power Slot 1 | 1 . . Propulsion Slot 2 | 2 . . Utility Slot 1 | 1 . . Heat Dissipation 6 | 6 . . Mass Support 1 | 1 . . Protomatter Created 11 | . 11 . Integrity Restored 33 | . 33 . Core 33 | . 33 . Protomatter Decayed . | . . . Game ------ Seed BombAssaultChronowheel Manual? 0 Play Time 00:08:00 Cumulative 104.7 hours Start 2021.11.19 @ 15:16:33 End 2021.11.19 @ 15:23:24 Sessions 1 Manual Loads 0 Difficulty Rogue Special Mode Winter2019/RPGLIKE Game No. 33 Rogue 3 Adventurer 0 Explorer 30 Win Type - Total 4 Types 0/1/0/2/0/0/0/0/1 Lore% 51 Gallery% 44 Achievement% 48 Wizard Run 0 Options --------- ASCII 0 Keyboard 0 Movement Mouse Keybinds 0 Fullscreen 2 Font 18/SmallcapsGlow Map View 76x50 Tactical HUD 1 Map Filters NONE Filters NONE Steam 1 RUN: 8909743f-8514-4b4e-aa88-02ff46f4013c